[Event "Belt and Road Women 2024"]
[Site "Yuecheng Shaoxing"]
[Date "2024.07.27"]
[Round "4.1"]
[White "Kurmangaliyeva, Liya"]
[Black "Tan, Zhongyi"]
[Result "0-1"]
[ECO "B51"]
[WhiteElo "2282"]
[BlackElo "2540"]
[Annotator "TA"]
[PlyCount "100"]
[EventDate "2024.08.01"]
[EventType "swiss"]
[EventCountry "CHN"]
[SourceTitle "playchess.com"]
[Source "ChessBase"]
[SourceQuality "1"]
[TimeControl "5400+30"]

{[%evp 9,100,13,7,-8,18,23,21,14,34,0,0,0,0,0,0,0,20,22,25,25,31,30,31,26,29,20,25,29,36,38,75,62,66,68,86,45,78,81,76,66,100,82,131,157,284,282,289,280,259,260,271,270,421,438,411,237,185,40,135,106,142,131,143,120,117,40,37,10,13,0,0,-78,-80,-68,-82,-75,-78,-86,-71,-79,-91,-231,-215,-518,-537,-551,-606,-956,-932,-973,-973,-29996,-29997]} 1. e4 {[%emt 0:00:09]} c5 {[%emt 0:01:08]} 2. Nf3 {[%emt 0:00:15]} d6 {[%emt 0:00:09]} 3. Bb5+ {[%emt 0:00:28]} Nd7 {[%emt 0:02:47]} 4. d4 {[%emt 0:00:27]} cxd4 {[%emt 0:01:27]} 5. Nxd4 {[%emt 0:00:17]} Ngf6 {[%emt 0:00:47]} 6. O-O {[%emt 0:00:45]} g6 {[%emt 0:04:32]} 7. Re1 {[%emt 0:01:49]} Bg7 {[%emt 0:00:26]} 8. Bf1 {[%emt 0:11:56] The position is equal.} Nc5 {[%emt 0:02:56]} 9. b4 {[%emt 0:13:07]} Ne6 {[%emt 0:00:20]} 10. Bb2 {[%emt 0:22:03]} O-O {[%emt 0:00:53]} 11. c4 {[%emt 0:05:21]} Qb6 {[%emt 0:04:46] ...Nh5 would now be deadly.} 12. Qd2 {[%emt 0:13:31]} Ng4 {[%emt 0:11:37]} 13. Nb5 {[%emt 0:00:00][%cal Bd4b5,Bb5c3,Bc3d5][%mdl 32]} a6 {[%emt 0:26:54]} 14. Bxg7 {[%emt 0:00:00]} Kxg7 {[%emt 0:00:23]} 15. Qb2+ {[%emt 0:00:00]} f6 {[%emt 0:00:05]} 16. N5c3 {[%emt 0:00:00]} a5 {[%emt 0:02:33]} 17. b5 {[%emt 0:11:32]} Qd4 {[%emt 0:08:27]} 18. h3 {[%emt 0:01:15]} Ne5 {[%emt 0:00:05]} 19. Rd1 {[%emt 0:01:19]} Qc5 {[%emt 0:00:05]} (19... Nxc4 $2 20. Qb3 Qe5 21. Bxc4 $18 (21. Qxc4 Nf4 $18)) 20. Nd5 {[%emt 0:01:23]} Rf7 {[%emt 0:08:40][%cal Oc8d7]} 21. Nbc3 {[%emt 0:00:10]} a4 {[%emt 0:00:20][%cal Oc8d7]} 22. Rac1 {[%emt 0:01:38]} g5 {[%emt 0:06:00]} 23. Ne2 {[%emt 0:04:26]} Kh8 {[%emt 0:02:11]} 24. Qd2 {[%emt 0:01:53]} Ng6 {[%emt 0:04:17]} 25. Ng3 {[%emt 0:00:30]} Nh4 {[%emt 0:03:02]} ({Better is} 25... Bd7 26. Rc3 Kg7 27. Nf5+ Kh8) 26. Be2 $1 $16 {[%emt 0:01:11]} Ng7 {[%emt 0:01:30] [#]} (26... a3 $16 27. Nf5 Nxf5) 27. e5 $1 $18 {[%emt 0:04:06][%mdl 512]} Bf5 {[%emt 0:02:54]} 28. exf6 {[%emt 0:02:07]} exf6 {[%emt 0:00:04]} 29. Qc3 {[%emt 0:00:34]} Raf8 {[%emt 0:00:37]} 30. Bh5 {[%emt 0:00:31]} Nxh5 {[%emt 0:02:10]} (30... Ng6 $142 31. Bg4 Bxg4) 31. Nxh5 {[%emt 0:00:05]} Ng6 {[%emt 0:00:07]} 32. Nhxf6 {[%emt 0:02:33] A dynamic duo of knights.} (32. g4 $142) 32... Ne5 {[%emt 0:00:15][%cal Ob7b6]} 33. Qg3 {[%emt 0:01:03]} (33. Rd4 $1 $18) 33... b6 {[%emt 0:03:16]} (33... Bg6 $14) 34. Kh1 $16 {[%emt 0:00:25]} (34. Qxg5 Nf3+ 35. gxf3 Rg7 $19) 34... Rxf6 {[%emt 0:00:40]} 35. Nxf6 {[%emt 0:00:04]} Rxf6 {[%emt 0:00:04]} 36. Qxg5 {[%emt 0:00:27]} (36. Rd5 Qc7 $16) 36... Nd7 {[%emt 0:00:36]} 37. Re1 {[%emt 0:00:50]} (37. f3 $16 {Threatens to win with Rd5.} h6 38. Qd2) 37... Be6 $14 {[%emt 0:00:37]} 38. Qh4 {[%emt 0:00:26][%cal Oe1e6]} Kg7 {[%emt 0:00:44]} 39. Rcd1 {[%emt 0:00:51]} Ne5 $1 {[%emt 0:00:21]} 40. Rd4 {[%emt 0:00:31]} (40. Kg1 $11) 40... Ng6 $1 $17 {[%emt 0:00:52][%mdl 1024] Black has strong compensation. Active counter play!} (40... Bxc4 $2 41. Rxe5 Qxe5 42. Rxc4 $18) 41. Qe4 {[%emt 0:00:02]} Rf4 {[%emt 0:00:31][%cal Of4e4]} 42. Qb7+ {[%emt 0:00:19]} Rf7 {[%emt 0:00:04]} 43. Qe4 {[%emt 0:00:15]} Rxf2 {[%emt 0:00:25]} 44. Red1 {[%emt 0:00:25] [#]} Qe5 $36 {[%emt 0:00:50][%mdl 2048] Black is on the roll.} (44... Rf4 45. Qb7+ (45. Qxe6 $2 Rxd4 46. Qd7+ Kh6 $19) 45... Rf7 46. Qe4 $11) 45. Qb7+ {[%emt 0:00:39]} (45. a3 $17 {is a better defense.}) 45... Kh6 $19 {[%emt 0:00:35][%cal Oe6h3] Hoping for ...Bxh3!} 46. Re4 $2 {[%emt 0:01:10] [#]} (46. Rxd6 $2 {is the wrong capture.} Bxh3 (46... Rxa2 47. Qf3 $17) (46... Bxc4 47. Rd7 $11) 47. Qa8 Bxg2+ 48. Qxg2 Rxg2 $19) (46. Qe4 {was the crucial defense.}) 46... Qh5 $1 {[%emt 0:00:34]} 47. Kg1 {[%emt 0:00:40]} Rxa2 {[%emt 0:00:36]} 48. Rxd6 {[%emt 0:00:31] [#]} Bxh3 {[%emt 0:00:23][%mdl 512]} 49. Rxg6+ {[%emt 0:00:29]} (49. Qe7 Rxg2+) 49... hxg6 {[%emt 0:00:12]} 50. Qxb6 {[%emt 0:00:21]} Rxg2+ {[%emt 0:00:10] Never resign too early!   Weighted Error Value: White=0.44/Black=0.19 (very precise) .  Mistake:       	White=6     	Black=4      Inaccurate:     	White=4     	Black=5      OK:         	White=17    	Black=16     Best:        	White=3     	Black=5      Strong:       	---       	Black=3      Brilliant:      	White=1     	---} 0-1

[Event "Belt and Road Women 2024"]
[Site "Yuecheng Shaoxing"]
[Date "2024.07.27"]
[Round "4.2"]
[White "Beydullayeva, Govhar"]
[Black "Velpula Sarayu"]
[Result "1/2-1/2"]
[ECO "E71"]
[WhiteElo "2417"]
[BlackElo "2384"]
[Annotator "RC"]
[PlyCount "171"]
[EventDate "2024.08.01"]
[EventType "swiss"]
[EventCountry "CHN"]
[SourceTitle "playchess.com"]
[Source "ChessBase"]
[SourceQuality "1"]
[TimeControl "5400+30"]

1. d4 {[%emt 0:00:05]} Nf6 {[%emt 0:00:27]} 2. c4 {[%emt 0:00:06]} g6 {[%emt 0:00:28]} 3. Nc3 {[%emt 0:00:10]} Bg7 {[%emt 0:00:30]} 4. e4 {[%emt 0:00:13]} d6 {[%emt 0:00:29]} 5. h3 {[%emt 0:00:27]} O-O {[%emt 0:00:33]} 6. Be3 {[%emt 0:00:30]} e5 {[%emt 0:00:30]} 7. d5 {[%emt 0:00:31]} Na6 {[%emt 0:00:27]} 8. g4 {[%emt 0:00:21]} Nc5 {[%emt 0:00:32]} 9. f3 {[%emt 0:00:25]} a5 {[%emt 0:01:04]} 10. Qd2 {[%emt 0:00:19]} c6 {[%emt 0:00:40]} 11. Nge2 {[%emt 0:01:04]} a4 {[%emt 0:00:52]} 12. h4 {[%emt 0:01:57]} cxd5 {[%emt 0:12:28]} 13. cxd5 {[%emt 0:01:25]} h5 {[%emt 0:00:21]} 14. g5 {[%emt 0:11:10]} Ne8 {[%emt 0:01:20]} 15. Nb5 {[%emt 0:04:19]} Nc7 {[%emt 0:07:42]} 16. Nec3 {[%emt 0:04:35]} Nxb5 {[%emt 0:01:43]} 17. Nxb5 {[%emt 0:02:11]} b6 {[%emt 0:00:21]} 18. O-O-O {[%emt 0:04:22]} Ba6 {[%emt 0:17:34]} 19. Na3 {[%emt 0:04:07]} Bxf1 {[%emt 0:02:36]} 20. Rhxf1 {[%emt 0:06:30]} Qd7 {[%emt 0:01:14]} 21. Kb1 {[%emt 0:03:41]} b5 {[%emt 0:02:39]} 22. Nc2 {[%emt 0:06:30]} Nb7 {[%emt 0:04:52]} 23. Nb4 {[%emt 0:02:41]} Na5 {[%emt 0:00:26]} 24. Rc1 {[%emt 0:03:15]} Rfc8 {[%emt 0:01:02]} 25. Rxc8+ {[%emt 0:09:01]} Rxc8 {[%emt 0:00:21]} 26. Rh1 {[%emt 0:00:33]} Bf8 {[%emt 0:04:43]} 27. Qf2 {[%emt 0:03:46]} Rc4 {[%emt 0:04:48]} 28. Bd2 {[%emt 0:00:55]} Be7 {[%emt 0:01:46]} 29. Nc2 {[%emt 0:06:11]} Bd8 {[%emt 0:02:02]} 30. Qe1 {[%emt 0:00:38]} Nb7 {[%emt 0:05:31]} 31. Na3 {[%emt 0:00:13]} Rc8 {[%emt 0:03:57]} 32. Qe2 {[%emt 0:01:16]} Ba5 {[%emt 0:04:12]} 33. Bxa5 {[%emt 0:01:28]} Nxa5 {[%emt 0:00:01]} 34. Qxb5 {[%emt 0:00:07]} Qxb5 {[%emt 0:02:23]} 35. Nxb5 {[%emt 0:00:02]} Nc4 {[%emt 0:00:06]} 36. Rh2 {[%emt 0:03:12]} Rb8 {[%emt 0:06:08]} 37. Nc3 {[%emt 0:01:04]} Rb4 {[%emt 0:00:32]} 38. Re2 {[%emt 0:03:57]} f6 {[%emt 0:01:23]} 39. gxf6 {[%emt 0:01:19]} Kf7 {[%emt 0:00:16]} 40. Nd1 {[%emt 0:08:33]} Kxf6 {[%emt 0:00:21]} 41. Kc2 {[%emt 0:00:17]} Rb8 {[%emt 0:00:48]} 42. Kd3 {[%emt 0:00:38]} Na5 {[%emt 0:01:05]} 43. Ne3 {[%emt 0:03:26]} Rb4 {[%emt 0:01:44]} 44. Kc3 {[%emt 0:01:12]} Rb8 {[%emt 0:00:22]} 45. Kd3 {[%emt 0:00:35]} Rb4 {[%emt 0:00:43]} 46. Rg2 {[%emt 0:01:17]} Rb8 {[%emt 0:03:02]} 47. Nc4 {[%emt 0:00:59]} Nb7 {[%emt 0:00:05]} 48. Ke3 {[%emt 0:01:10]} Rc8 {[%emt 0:02:29]} 49. Kd3 {[%emt 0:00:06]} Rb8 {[%emt 0:00:06]} 50. Rg1 {[%emt 0:00:39]} Rg8 {[%emt 0:00:39]} 51. b4 {[%emt 0:01:18]} axb3 {[%emt 0:01:11]} 52. axb3 {[%emt 0:00:00]} Ra8 {[%emt 0:00:08]} 53. b4 {[%emt 0:00:48]} Ra2 {[%emt 0:00:17]} 54. Nd2 {[%emt 0:00:19]} Ra3+ {[%emt 0:00:33]} 55. Ke2 {[%emt 0:00:34]} Ra2 {[%emt 0:00:15]} 56. Kd3 {[%emt 0:01:22]} Ra3+ {[%emt 0:00:01]} 57. Kc2 {[%emt 0:00:39]} Ra2+ {[%emt 0:00:24]} 58. Kc3 {[%emt 0:00:09]} Ra3+ {[%emt 0:00:26]} 59. Kb2 {[%emt 0:00:32]} Re3 {[%emt 0:00:16]} 60. Ra1 {[%emt 0:00:10]} Nd8 {[%emt 0:02:56]} 61. Ra7 {[%emt 0:00:10]} g5 {[%emt 0:00:38]} 62. hxg5+ {[%emt 0:00:57]} Kg6 {[%emt 0:00:01]} 63. Rd7 {[%emt 0:00:44]} Nf7 {[%emt 0:00:02]} 64. b5 {[%emt 0:00:05]} Rd3 {[%emt 0:01:05]} 65. Kc2 {[%emt 0:00:39]} Ra3 {[%emt 0:00:01]} 66. b6 {[%emt 0:00:45]} Ra8 {[%emt 0:00:01]} 67. Ra7 {[%emt 0:00:43]} Rb8 {[%emt 0:00:01]} 68. Nc4 {[%emt 0:00:07]} h4 {[%emt 0:00:03]} 69. Kd3 {[%emt 0:00:35]} h3 {[%emt 0:00:08]} 70. Ke3 {[%emt 0:00:47]} Nxg5 {[%emt 0:00:15]} 71. Ra2 {[%emt 0:00:31]} Rf8 {[%emt 0:01:09]} 72. b7 {[%emt 0:00:33]} Rxf3+ {[%emt 0:00:18]} 73. Ke2 {[%emt 0:00:03]} Rb3 {[%emt 0:00:47]} 74. Rb2 {[%emt 0:00:51]} Rxb2+ {[%emt 0:01:09]} 75. Nxb2 {[%emt 0:00:01]} h2 {[%emt 0:00:00]} 76. b8=Q {[%emt 0:00:09]} h1=Q {[%emt 0:00:05]} 77. Qxd6+ {[%emt 0:01:22]} Kh5 {[%emt 0:00:10]} 78. Qxe5 {[%emt 0:00:26]} Qxe4+ {[%emt 0:00:37]} 79. Qxe4 {[%emt 0:00:06]} Nxe4 {[%emt 0:00:02]} 80. Kd3 {[%emt 0:00:34]} Nf6 {[%emt 0:00:10]} 81. d6 {[%emt 0:00:07]} Kg6 {[%emt 0:00:07]} 82. Kd4 {[%emt 0:00:19]} Kf7 {[%emt 0:00:07]} 83. Nc4 {[%emt 0:00:37]} Ke6 {[%emt 0:00:13]} 84. Kc5 {[%emt 0:00:16]} Ne4+ {[%emt 0:00:05]} 85. Kc6 {[%emt 0:00:03]} Nxd6 {[%emt 0:00:03]} 86. Nxd6 {[%emt 0:00:02]} 1/2-1/2

[Event "Belt and Road Women 2024"]
[Site "Yuecheng Shaoxing"]
[Date "2024.07.27"]
[Round "4.3"]
[White "Mammadzada, Gunay"]
[Black "Wagner, Dinara"]
[Result "1/2-1/2"]
[ECO "A07"]
[WhiteElo "2444"]
[BlackElo "2454"]
[Annotator "RC"]
[PlyCount "78"]
[EventDate "2024.08.01"]
[EventType "swiss"]
[EventCountry "CHN"]
[SourceTitle "playchess.com"]
[Source "ChessBase"]
[SourceQuality "1"]
[TimeControl "5400+30"]

1. Nf3 {[%emt 0:00:12]} d5 {[%emt 0:00:06]} 2. g3 {[%emt 0:00:07]} Bg4 {[%emt 0:00:25]} 3. Bg2 {[%emt 0:00:05]} c6 {[%emt 0:00:03]} 4. O-O {[%emt 0:00:55]} Nf6 {[%emt 0:00:27]} 5. h3 {[%emt 0:00:11]} Bh5 {[%emt 0:00:15]} 6. c4 {[%emt 0:00:37]} e6 {[%emt 0:00:09]} 7. Qb3 {[%emt 0:01:25]} Qb6 {[%emt 0:01:29]} 8. cxd5 {[%emt 0:06:43]} Qxb3 {[%emt 0:06:42]} 9. axb3 {[%emt 0:00:05]} Bxf3 {[%emt 0:00:14]} 10. Bxf3 {[%emt 0:01:15]} cxd5 {[%emt 0:00:03]} 11. d3 {[%emt 0:06:37]} Nc6 {[%emt 0:00:48]} 12. Be3 {[%emt 0:00:29]} Be7 {[%emt 0:09:02]} 13. Na3 {[%emt 0:17:16]} O-O {[%emt 0:05:08]} 14. Nc2 {[%emt 0:00:10]} Rfc8 {[%emt 0:03:01]} 15. Rfc1 {[%emt 0:00:26]} a6 {[%emt 0:07:44]} 16. Bd2 {[%emt 0:03:32]} Nd7 {[%emt 0:02:14]} 17. d4 {[%emt 0:01:33]} Nf6 {[%emt 0:15:06]} 18. e3 {[%emt 0:04:37]} Ne4 {[%emt 0:01:40]} 19. Bxe4 {[%emt 0:07:55]} dxe4 {[%emt 0:00:04]} 20. Na3 {[%emt 0:00:05]} Bxa3 {[%emt 0:12:08]} 21. bxa3 {[%emt 0:00:05]} Na7 {[%emt 0:16:07]} 22. Rc4 {[%emt 0:04:17]} Rc6 {[%emt 0:00:27]} 23. f3 {[%emt 0:07:28]} exf3 {[%emt 0:04:43]} 24. Kf2 {[%emt 0:01:38]} Rd8 {[%emt 0:04:58]} 25. Kxf3 {[%emt 0:04:30]} f5 {[%emt 0:04:04]} 26. Ba5 {[%emt 0:02:00]} Rd5 {[%emt 0:00:15]} 27. Bc7 {[%emt 0:00:23]} Rb5 {[%emt 0:03:17]} 28. Rxc6 {[%emt 0:00:18]} Nxc6 {[%emt 0:00:02]} 29. b4 {[%emt 0:00:59]} e5 {[%emt 0:00:56]} 30. Bxe5 {[%emt 0:03:11]} Nxe5+ {[%emt 0:00:03]} 31. dxe5 {[%emt 0:00:06]} Rxe5 {[%emt 0:00:03]} 32. Rc1 {[%emt 0:01:19]} Re7 {[%emt 0:00:38]} 33. Rc5 {[%emt 0:00:27]} g6 {[%emt 0:00:04]} 34. g4 {[%emt 0:02:07]} fxg4+ {[%emt 0:00:03]} 35. hxg4 {[%emt 0:00:04]} h6 {[%emt 0:00:21]} 36. e4 {[%emt 0:01:25]} Kf7 {[%emt 0:00:04]} 37. b5 {[%emt 0:03:55]} b6 {[%emt 0:02:44]} 38. Rd5 {[%emt 0:00:33]} axb5 {[%emt 0:00:04]} 39. Rxb5 {[%emt 0:00:03]} Ra7 {[%emt 0:00:02]} 1/2-1/2

[Event "Belt and Road Women 2024"]
[Site "Yuecheng Shaoxing"]
[Date "2024.07.27"]
[Round "4.4"]
[White "Garifullina, Leya"]
[Black "Badelka, Olga"]
[Result "0-1"]
[ECO "D94"]
[WhiteElo "2458"]
[BlackElo "2389"]
[Annotator "TA"]
[PlyCount "84"]
[EventDate "2024.08.01"]
[EventType "swiss"]
[EventCountry "CHN"]
[SourceTitle "playchess.com"]
[Source "ChessBase"]
[SourceQuality "1"]
[TimeControl "5400+30"]

{[%evp 14,84,34,10,28,15,25,4,19,6,26,0,60,40,55,35,42,50,37,46,80,62,68,66,70,66,75,68,75,62,72,50,61,11,13,-64,-68,-61,-54,-65,-85,-82,-67,-62,-56,-50,-44,-40,-21,-28,-30,-29,-20,-17,-39,-27,-28,-26,0,-6,0,-420,-418,-579,-567,-1372,-1368,-1394,-1297,-29980,-29979,-29975,-993]} 1. d4 {[%emt 0:00:14]} d5 {[%emt 0:00:05]} 2. c4 {[%emt 0:00:14]} c6 {[%emt 0:00:05]} 3. Nf3 {[%emt 0:00:06]} Nf6 {[%emt 0:00:04]} 4. e3 {[%emt 0:00:06]} g6 {[%emt 0:00:27]} 5. Nc3 {[%emt 0:00:21]} Bg7 {[%emt 0:00:06]} 6. Be2 {[%emt 0:00:14]} O-O {[%emt 0:00:14]} 7. O-O {[%emt 0:00:11]} Ne4 {[%emt 0:00:12]} 8. Qb3 {[%emt 0:01:51]} dxc4 {[%emt 0:00:27]} 9. Bxc4 {[%emt 0:00:58]} Nd6 {[%emt 0:00:10]} 10. Be2 {[%emt 0:01:38]} Bf5 {[%emt 0:00:19] The position is equal.} 11. Rd1 {[%emt 0:01:38]} Nd7 {[%emt 0:07:13]} 12. Bd2 {[%emt 0:07:49][%cal Bc1d2,Bd2e1,Be1a5][%mdl 32]} c5 {[%emt 0:11:20]} (12... Qb6 $11) 13. Be1 {[%emt 0:04:41]} Rc8 {[%emt 0:02:52]} 14. Rac1 {[%emt 0:06:00]} c4 {[%emt 0:03:14]} 15. Qa3 {[%emt 0:02:01]} b5 {[%emt 0:04:17]} 16. Nd5 {[%emt 0:12:34][%cal Oe1b4]} Be4 {[%emt 0:00:51] [#]} 17. Ba5 $1 {[%emt 0:00:47]} Nb6 {[%emt 0:00:05]} 18. Nc3 {[%emt 0:01:54]} Bb7 {[%emt 0:00:47]} 19. Qb4 {[%emt 0:04:59]} Qe8 {[%emt 0:04:52]} 20. Bxb6 {[%emt 0:00:25]} axb6 {[%emt 0:00:03]} 21. b3 {[%emt 0:01:32]} Qd7 {[%emt 0:14:17]} 22. Ne5 {[%emt 0:03:08] A dynamic duo of knights.} (22. Rb1 {simplifies} cxb3 23. Qxb3 Rfd8 24. Nxb5 Nxb5 25. Qxb5 Qxb5 26. Bxb5 Bxf3 27. gxf3 Rc2 28. Bd3) 22... Qe6 {[%emt 0:00:57]} 23. f4 {[%emt 0:02:21]} (23. Nxb5 $14 Bxe5 24. dxe5 Nxb5 25. Qxb5 (25. Bxc4 Rxc4 26. Rxc4 Qxe5 $15) 25... cxb3 26. axb3) 23... Nf5 $11 {[%emt 0:08:06][%cal Bd6f5,Bf5e3,Be3c2][%mdl 32]} 24. e4 {[%emt 0:03:44]} (24. Bg4 $11) 24... Ne3 $1 $15 {[%emt 0:02:38]} 25. Re1 {[%emt 0:04:44]} Qd6 {[%emt 0:00:55]} 26. Qxb5 {[%emt 0:03:28]} cxb3 {[%emt 0:05:48]} 27. Qd3 {[%emt 0:05:40]} Nc2 {[%emt 0:02:21] Black is much more active.} (27... b2 $2 28. Rb1 Qb4 29. Qxe3 $19) (27... b2 {with more complications.} 28. Rb1 Qb4 29. Qxe3 Rxc3 30. Qd2 Rd8) 28. Red1 {[%emt 0:02:15]} Bxe5 {[%emt 0:06:52]} (28... Qb4 {keeps more tension.} 29. Nb5 b2 30. Rb1 Ba6) 29. fxe5 {[%emt 0:00:24]} Qb4 {[%emt 0:00:27]} 30. Nb5 {[%emt 0:01:34] [#]} bxa2 {[%emt 0:08:11]} 31. Rxc2 {[%emt 0:01:31] [#]} Bxe4 $1 {[%emt 0:09:23]} 32. Qxe4 {[%emt 0:00:49]} Qb1 {[%emt 0:00:04]} 33. Na3 {[%emt 0:00:05] [#]} Qxd1+ {[%emt 0:00:06]} 34. Bxd1 {[%emt 0:00:03]} a1=Q {[%emt 0:00:04]} 35. Qd3 {[%emt 0:00:11]} Ra8 {[%emt 0:00:41][%mdl 1024] Black has compensation.} (35... b5 $5 36. Kf2 (36. Nxb5 Rxc2 37. Qxc2 Rb8 $19) 36... b4 $15) 36. Rc3 {[%emt 0:01:38]} Rfc8 $36 {[%emt 0:00:37][%mdl 2048] White is under pressure.} 37. Rb3 {[%emt 0:02:28][%mdl 8192]} (37. Rxc8+ $1 $11 {and White is okay.} Rxc8 38. Nc2) 37... Rc1 $19 {[%emt 0:00:06]} 38. Nb1 {[%emt 0:00:03]} Ra4 {[%emt 0:03:34]} 39. Kf2 {[%emt 0:12:25]} Rxd4 {[%emt 0:00:24]} (39... Qxd4+ 40. Qxd4 Rxd4 41. Bf3 $11) 40. Qe3 {[%emt 0:01:01]} Rdxd1 {[%emt 0:00:26]} 41. Nd2 {[%emt 0:00:11]} Rc2 {[%emt 0:01:59]} 42. Rd3 {[%emt 0:01:04]} Qb2 {[%emt 0:00:11] Weighted Error Value: White=0.62/Black=0.07 (flawless) .  Loses game:     	White=1     	---        Mistake:       	White=2     	Black=1      Inaccurate:     	White=3     	Black=2      OK:         	White=12    	Black=16     Best:        	White=1     	Black=3      Strong:       	White=1     	Black=1      Brilliant:      	---       	Black=1} (42... Qc1 $142 43. Rd8+ Kg7 44. Kg3 Rdxd2 (44... Rcxd2 $2 45. Rxd2 Qxd2 46. Qxd2 $19) 45. Rxd2 Qxd2 46. Qxd2 Rxd2 47. Kf3 b5 48. e6 b4 (48... fxe6 {leads to mate.} 49. h3 b4 50. h4 b3 51. Ke3 Rd6 52. g3 b2 53. h5 b1=Q 54. h6+ Kxh6 55. Kf2 Rd2+ 56. Ke3 Qd3+ 57. Kf4 g5+ 58. Kg4 Qf5#) 49. exf7 b3 (49... Kxf7 {is a self mate.} 50. h3 b3 51. h4 b2 52. Ke3 Rc2 53. Kf4 b1=Q 54. g4 Qb4+ 55. Kg3 Qe1+ 56. Kf4 Rf2+ 57. Kg5 Qe3#) 50. h4 b2 (50... Kxf7 51. Ke3 Rxg2 52. Kf4 b2 53. Kf3 Rc2 54. Kg4 b1=Q 55. h5 Rc4+ 56. Kf3 Qb3+ 57. Kg2 Rc2+ 58. Kh1 Qb1#) 51. Ke3 Rd6 (51... b1=N $2 52. Kf4 $19) (51... b1=Q 52. Kxd2 Qb2+ 53. Kd3 Qxg2 54. Kd4 Qd2+ 55. Ke4 Qc3 56. f8=R Kxf8 57. h5 gxh5 58. Kf5 Kf7 59. Ke4 Ke6 60. Kf4 Qd3 61. Kg5 Qf5+ 62. Kh6 Qg6#) 52. Kf3 b1=Q (52... b1=B $2 53. Ke2 $19) 53. Kg3 Qe1+ (53... Kxf7 54. Kh3 Qe1 55. Kg4 Rd3 56. Kf4 Qg3+ 57. Ke4 Qe3#) 54. Kg4 Rd4+ (54... Kxf7 {gets mated.} 55. h5 Rd4+ 56. Kf3 Rd3+ 57. Kf4 Qg3+ 58. Ke4 Qe3#) 55. Kf3 Rd3+ (55... Qxh4 56. f8=R Qe4+ 57. Kg3 Kxf8 58. Kf2 Qf4+ 59. Ke2 Rd2+ 60. Ke1 Qf2#) 56. Kf4 Qg3+ 57. Ke4 Qe3#) 0-1

[Event "Belt and Road Women 2024"]
[Site "Yuecheng Shaoxing"]
[Date "2024.07.27"]
[Round "4.5"]
[White "Ni, Shiqun"]
[Black "Lu, Miaoyi"]
[Result "0-1"]
[ECO "C54"]
[WhiteElo "2352"]
[BlackElo "2449"]
[Annotator "RC"]
[PlyCount "122"]
[EventDate "2024.08.01"]
[EventType "swiss"]
[EventCountry "CHN"]
[SourceTitle "playchess.com"]
[Source "ChessBase"]
[SourceQuality "1"]
[TimeControl "5400+30"]

1. e4 {[%emt 0:02:48]} e5 {[%emt 0:00:01]} 2. Nf3 {[%emt 0:00:11]} Nc6 {[%emt 0:00:02]} 3. Bc4 {[%emt 0:00:11]} Nf6 {[%emt 0:00:05]} 4. d3 {[%emt 0:00:08]} Bc5 {[%emt 0:00:05]} 5. O-O {[%emt 0:02:26]} O-O {[%emt 0:00:03]} 6. c3 {[%emt 0:04:51]} d6 {[%emt 0:00:02]} 7. h3 {[%emt 0:00:48]} a5 {[%emt 0:00:15]} 8. Re1 {[%emt 0:02:45]} Ba7 {[%emt 0:00:02]} 9. d4 {[%emt 0:10:11]} Re8 {[%emt 0:00:56]} 10. Qb3 {[%emt 0:09:10]} Qe7 {[%emt 0:07:50]} 11. dxe5 {[%emt 0:06:46]} Nxe5 {[%emt 0:04:38]} 12. Nxe5 {[%emt 0:00:03]} dxe5 {[%emt 0:00:04]} 13. a4 {[%emt 0:01:14]} Nh5 {[%emt 0:14:30]} 14. Be3 {[%emt 0:01:46]} Nf4 {[%emt 0:12:53]} 15. Bxa7 {[%emt 0:00:46]} Rxa7 {[%emt 0:03:07]} 16. Re3 {[%emt 0:00:32]} Be6 {[%emt 0:06:11]} 17. Bxe6 {[%emt 0:10:01]} Qxe6 {[%emt 0:00:01]} 18. Qxe6 {[%emt 0:00:15]} Rxe6 {[%emt 0:08:54]} 19. Na3 {[%emt 0:10:05]} Rg6 {[%emt 0:01:07]} 20. g3 {[%emt 0:00:04]} Nxh3+ {[%emt 0:01:03]} 21. Kg2 {[%emt 0:00:16]} Nf4+ {[%emt 0:01:41]} 22. Kf3 {[%emt 0:00:06]} Ne6 {[%emt 0:00:46]} 23. Rd3 {[%emt 0:01:31]} Kf8 {[%emt 0:13:08]} 24. Nc4 {[%emt 0:00:53]} f6 {[%emt 0:01:48]} 25. Rad1 {[%emt 0:00:21]} h5 {[%emt 0:10:33]} 26. Ne3 {[%emt 0:06:29]} Ke8 {[%emt 0:06:36]} 27. Nf5 {[%emt 0:00:41]} Ra8 {[%emt 0:00:04]} 28. Ke3 {[%emt 0:23:13]} Nc5 {[%emt 0:00:33]} 29. Rd5 {[%emt 0:00:38]} Nxa4 {[%emt 0:01:26]} 30. Rd7 {[%emt 0:02:59]} Nxb2 {[%emt 0:00:03]} 31. Re7+ {[%emt 0:00:27]} Kf8 {[%emt 0:00:01]} 32. Rb1 {[%emt 0:02:57]} Nc4+ {[%emt 0:02:34]} 33. Kd3 {[%emt 0:00:01]} b5 {[%emt 0:04:08]} 34. Rxc7 {[%emt 0:00:32]} Rb8 {[%emt 0:01:35]} 35. Ke2 {[%emt 0:00:18]} Na3 {[%emt 0:00:09]} 36. Rd1 {[%emt 0:00:40]} b4 {[%emt 0:00:33]} 37. cxb4 {[%emt 0:00:13]} Nb5 {[%emt 0:00:46]} 38. Rc4 {[%emt 0:00:54]} a4 {[%emt 0:00:29]} 39. Ra1 {[%emt 0:00:49]} a3 {[%emt 0:00:12]} 40. Rc5 {[%emt 0:00:08]} Rg4 {[%emt 0:00:22]} 41. Kd3 {[%emt 0:00:49]} Rd8+ {[%emt 0:01:00]} 42. Ke3 {[%emt 0:00:28]} Nd4 {[%emt 0:00:09]} 43. Rxa3 {[%emt 0:01:02]} Nxf5+ {[%emt 0:00:03]} 44. exf5 {[%emt 0:00:04]} Rxb4 {[%emt 0:00:08]} 45. Rc7 {[%emt 0:00:09]} Rg4 {[%emt 0:00:14]} 46. Raa7 {[%emt 0:00:54]} Kg8 {[%emt 0:00:33]} 47. Kf3 {[%emt 0:00:24]} Kh7 {[%emt 0:00:31]} 48. Kg2 {[%emt 0:00:06]} Rg5 {[%emt 0:01:04]} 49. Kh3 {[%emt 0:01:23]} Rd3 {[%emt 0:00:06]} 50. Kg2 {[%emt 0:00:33]} Rd4 {[%emt 0:00:59]} 51. Kh3 {[%emt 0:00:22]} Rdg4 {[%emt 0:00:26]} 52. Rc3 {[%emt 0:00:26]} Rxf5 {[%emt 0:00:11]} 53. f3 {[%emt 0:00:07]} Rg6 {[%emt 0:00:23]} 54. Ra4 {[%emt 0:00:50]} Rfg5 {[%emt 0:00:28]} 55. g4 {[%emt 0:00:24]} hxg4+ {[%emt 0:00:06]} 56. fxg4 {[%emt 0:00:25]} Rh6+ {[%emt 0:00:32]} 57. Kg3 {[%emt 0:00:42]} f5 {[%emt 0:00:04]} 58. Rc5 {[%emt 0:00:32]} Rhg6 {[%emt 0:00:27]} 59. Kf3 {[%emt 0:00:41]} Rxg4 {[%emt 0:01:04]} 60. Rxg4 {[%emt 0:00:05]} Rxg4 {[%emt 0:00:10]} 61. Rxe5 {[%emt 0:00:04]} Kg6 {[%emt 0:00:07]} 0-1